fUSD/lending_fUSD_20240327
["ID","MTS","AMOUNT","RATE_DAILY","PERIOD"]
[320764422,1711548672893,-664.05,0.00055068,120]
[320764423,1711548672911,-500.0,0.00055068,120]
[320764424,1711548673352,-500.0,0.00055068,120]
[320764425,1711548673380,-500.0,0.00055068,120]
[320764426,1711548673405,-500.0,0.00055068,120]
[320764427,1711548673430,-656.68,0.00055068,120]
[320764428,1711548673455,-526.37,0.00055068,120]
[320764429,1711548673481,-500.0,0.00055068,120]
[320764430,1711548673508,-500.0,0.00055068,120]
[320764431,1711548673535,-500.0,0.00055068,120]
[320764432,1711548673563,-500.0,0.00055068,120]
[320764433,1711548673585,-611.21,0.00055068,120]
[320764434,1711548673596,-500.0,0.00055068,120]
[320764435,1711548673607,-500.0,0.00055068,120]
[320764436,1711548673617,-163.2,0.00055068,120]
[320764437,1711548673626,-578.74,0.00055068,120]
[320764438,1711548673636,-612.98,0.00055068,120]
[320764439,1711548673646,-500.0,0.00055068,120]
[320764440,1711548673664,-500.0,0.00055068,120]
[320764441,1711548673676,-359.42,0.00055068,120]
[320764442,1711548673687,-500.0,0.00055068,120]
[320764443,1711548673698,-927.68,0.00055068,120]
[320764444,1711548673709,-501.87,0.00055068,120]
[320764445,1711548673719,-583.89,0.00055068,120]
[320764446,1711548673730,-500.0,0.00055068,120]
[320764447,1711548673742,-500.0,0.00055068,120]
[320764448,1711548673753,-500.0,0.00055068,120]
[320764449,1711548673765,-500.0,0.00055068,120]
[320764450,1711548673777,-1388.0,0.00055068,120]
[320764451,1711548673788,-500.0,0.00055068,120]
[320764452,1711548673799,-500.0,0.00055068,120]
[320764453,1711548673810,-738.82,0.00055068,120]
[320764454,1711548673821,-500.0,0.00055068,120]
[320764455,1711548673832,-500.0,0.00055068,120]
[320764456,1711548673844,-500.0,0.00055068,120]
[320764457,1711548673855,-500.0,0.00055068,120]
[320764458,1711548673867,-1366.46,0.00055068,120]
[320764459,1711548673878,-500.0,0.00055068,120]
[320764460,1711548673889,-500.0,0.00055068,120]
[320764461,1711548673900,-500.0,0.00055068,120]
[320764462,1711548673917,-500.0,0.00055068,120]
[320764463,1711548673927,-750.86,0.00055068,120]
[320764464,1711548673938,-500.0,0.00055068,120]
[320764465,1711548673948,-500.0,0.00055068,120]
[320764466,1711548673959,-500.0,0.00055068,120]
[320764467,1711548673969,-503.45,0.00055068,120]
[320764468,1711548673980,-500.0,0.00055068,120]
[320764469,1711548673991,-500.0,0.00055068,120]
[320764470,1711548674001,-500.0,0.00055068,120]
[320764471,1711548674011,-527.46,0.00055068,120]
[320764472,1711548674022,-375.93,0.00055068,120]
[320764473,1711548674040,-500.0,0.00055068,120]
[320764474,1711548674056,-500.0,0.00055068,120]
[320764475,1711548674067,-500.0,0.00055068,120]
[320764476,1711548674076,-500.0,0.00055068,120]
[320764477,1711548674086,-500.0,0.00055068,120]
[320764478,1711548674097,-17276.42899109,0.00055068,120]
[320764479,1711548674117,-599.38775637,0.00055068,120]
[320764480,1711548674141,-4866.50040365,0.00055068,120]
[320764481,1711548674159,-2390.67284889,0.00055068,120]
[320764482,1711548674169,-151.0,0.00055068,120]
[320764483,1711548674179,-552.92,0.00055068,120]
[320764484,1711548674189,-613.33358771,0.00055068,120]
[320764485,1711548674198,-500.0,0.00055068,120]
[320764486,1711548674207,-500.0,0.00055068,120]
[320764487,1711548674217,-698.55,0.00055068,120]
[320764488,1711548674227,-500.0,0.00055068,120]
[320764489,1711548674237,-500.0,0.00055068,120]
[320764490,1711548674246,-500.0,0.00055068,120]
[320764491,1711548674256,-151.0,0.00055068,120]
[320764492,1711548674266,-500.0,0.00055068,120]
[320764493,1711548674276,-500.0,0.00055068,120]
[320764494,1711548674287,-500.0,0.00055068,120]
[320764495,1711548674297,-500.0,0.00055068,120]
[320764496,1711548674306,-376.410152,0.00055068,120]
[320764497,1711548674315,-641.12,0.00055068,120]
[320764498,1711548674324,-4159.08,0.00055068,120]
[320764499,1711548674334,-503.27,0.00055068,120]
[320764500,1711548674343,-1027.4,0.00055068,120]
[320764501,1711548674352,-151.0,0.00055068,120]
[320764502,1711548674362,-6995.52,0.00055068,120]
[320764503,1711548674372,-500.0,0.00055068,120]
[320764504,1711548674381,-4012.43,0.00055068,120]
[320764505,1711548674390,-500.0,0.00055068,120]
[320764506,1711548674400,-500.0,0.00055068,120]
[320764507,1711548674416,-501.41,0.00055068,120]
[320764508,1711548674426,-500.0,0.00055068,120]
[320764509,1711548674435,-500.0,0.00055068,120]
[320764510,1711548674445,-500.0,0.00055068,120]
[320764511,1711548674455,-500.0,0.00055068,120]
[320764512,1711548674465,-727.55,0.00055068,120]
[320764513,1711548674474,-500.0,0.00055068,120]
[320764514,1711548674483,-500.0,0.00055068,120]
[320764515,1711548674493,-500.0,0.00055068,120]
[320764516,1711548674503,-524.95,0.00055068,120]
[320764517,1711548674512,-500.0,0.00055068,7]
[320764518,1711548674522,-500.0,0.00055068,120]
[320764519,1711548674531,-607.46,0.00055068,120]
[320764520,1711548674541,-500.0,0.00055068,120]
[320764521,1711548674551,-2427.12,0.00055068,120]
[320764522,1711548674560,-991.32,0.00055068,120]
[320764523,1711548674569,-2948.76,0.00055068,120]
[320764524,1711548674579,-1381.98,0.00055068,120]
[320764525,1711548674589,-1431.7,0.00055068,120]
[320764526,1711548674599,-956.05,0.00055068,120]
[320764527,1711548674608,-500.0,0.00055068,120]
[320764528,1711548674618,-500.0,0.00055068,120]
[320764529,1711548674627,-11854.07,0.00055068,120]
[320764530,1711548674636,-7146.88,0.00055068,120]
[320764531,1711548674647,-4426.81,0.00055068,120]
[320764532,1711548674659,-3417.72,0.00055068,21]
[320764533,1711548674668,-1318.6,0.00055068,120]
[320764534,1711548674678,-613.86,0.00055068,120]
[320764535,1711548674688,-500.0,0.00055068,120]
[320764536,1711548674698,-500.0,0.00055068,120]
[320764537,1711548674708,-1157.32,0.00055068,120]
[320764538,1711548674717,-500.0,0.00055068,120]
[320764539,1711548674725,-2303.2,0.00055068,120]
[320764540,1711548674735,-6635.16,0.00055068,120]
[320764541,1711548674744,-500.0,0.00055068,120]
[320764542,1711548674753,-2581.27,0.00055068,120]
[320764543,1711548674762,-500.0,0.00055068,120]
[320764544,1711548674771,-500.0,0.00055068,120]
[320764545,1711548674781,-500.0,0.00055068,120]
[320764546,1711548674790,-1794.3,0.00055068,120]
[320764547,1711548674799,-927.42,0.00055068,120]
[320764548,1711548674810,-1270.22,0.00055068,120]
[320764549,1711548674819,-1063.71,0.00055068,120]
[320764550,1711548674828,-500.0,0.00055068,120]
[320764551,1711548674837,-500.0,0.00055068,120]
[320764552,1711548674846,-735.59,0.00055068,120]
[320764553,1711548674855,-1540.36,0.00055068,120]
[320764554,1711548674867,-1122.91,0.00055068,120]
[320764555,1711548674876,-2026.07,0.00055068,120]
[320764556,1711548674886,-500.0,0.00055068,120]
[320764557,1711548674895,-1982.99,0.00055068,120]
[320764558,1711548674907,-767.76,0.00055068,120]
[320764559,1711548674917,-500.0,0.00055068,120]
[320764560,1711548674926,-763.05,0.00055068,120]
[320764561,1711548674936,-500.0,0.00055068,120]
[320764562,1711548674946,-500.0,0.00055068,120]
[320764563,1711548674956,-659.21,0.00055068,120]
[320764564,1711548674965,-500.0,0.00055068,120]
[320764565,1711548674974,-500.0,0.00055068,120]
[320764566,1711548674983,-1503.32,0.00055068,120]
[320764567,1711548674994,-53903.71,0.00055068,120]
[320764568,1711548675003,-681.37,0.00055068,120]
[320764569,1711548675012,-6185.93,0.00055068,120]
[320764570,1711548675022,-5232.02,0.00055068,120]
[320764571,1711548675031,-500.0,0.00055068,120]
[320764572,1711548675044,-516.48,0.00055068,120]
[320764573,1711548675054,-693.39,0.00055068,120]
[320764574,1711548675063,-6825.37,0.00055068,120]
[320764575,1711548675072,-500.0,0.00055068,120]
[320764576,1711548675083,-500.0,0.00055068,120]
[320764577,1711548675092,-500.0,0.00055068,120]
[320764578,1711548675104,-500.0,0.00055068,120]
[320764579,1711548675113,-3850.72,0.00055068,120]
[320764580,1711548675122,-500.0,0.00055068,120]
[320764581,1711548675132,-2864.18,0.00055068,120]
[320764582,1711548675141,-2840.25,0.00055068,120]
[320764583,1711548675150,-555.28,0.00055068,120]
[320764584,1711548675163,-1756.9,0.00055068,120]
[320764585,1711548675173,-500.0,0.00055068,120]
[320764586,1711548675183,-1806.36,0.00055068,120]
[320764587,1711548675194,-500.0,0.00055068,120]
[320764588,1711548675204,-6827.78,0.00055068,120]
[320764589,1711548675214,-951.23,0.00055068,120]
[320764590,1711548675223,-151.0,0.00055068,120]
[320764591,1711548675233,-3135.21,0.00055068,120]
[320764592,1711548675244,-1430.25,0.00055068,120]
[320764593,1711548675254,-1318.37,0.00055068,120]
[320764594,1711548675264,-1350.06,0.00055068,120]
[320764595,1711548675274,-2151.34,0.00055068,120]
[320764596,1711548675284,-1043.59,0.00055068,120]
[320764597,1711548675295,-877.23,0.00055068,120]
[320764598,1711548675305,-4315.69,0.00055068,120]
[320764599,1711548675315,-4698.19,0.00055068,120]
[320764600,1711548675324,-2096.28,0.00055068,120]
[320764601,1711548675335,-500.0,0.00055068,120]
[320764602,1711548675346,-1083.91,0.00055068,120]
[320764603,1711548675356,-181.41,0.00055068,120]
[320764604,1711548675365,-2855.33,0.00055068,120]
[320764605,1711548675375,-1298.8,0.00055068,120]
[320764606,1711548675384,-720.22,0.00055068,120]
[320764607,1711548675393,-1532.25,0.00055068,120]
[320764608,1711548675404,-502.0,0.00055068,120]
[320764609,1711548675421,-5190.44,0.00055068,120]
[320764610,1711548675434,-2678.01,0.00055068,120]
[320764611,1711548675444,-500.0,0.00055068,120]
[320764612,1711548675454,-500.0,0.00055068,120]
[320764613,1711548675464,-908.56,0.00055068,120]
[320764614,1711548675474,-500.0,0.00055068,120]
[320764615,1711548675484,-3901.55,0.00055068,120]
[320764616,1711548675495,-766.57,0.00055068,120]
[320764617,1711548675505,-14149.35,0.00055068,120]
[320764618,1711548675516,-2389.53,0.00055068,120]
[320764619,1711548675527,-1559.13,0.00055068,120]
[320764620,1711548675538,-11041.69,0.00055068,120]
[320764621,1711548675548,-2639.73,0.00055068,120]
[320764622,1711548675558,-5902.28,0.00055068,120]
[320764623,1711548675569,-500.0,0.00055068,120]
[320764624,1711548675580,-320.14,0.00055068,120]
[320764625,1711548675590,-942.59,0.00055068,120]
[320764626,1711548675600,-750.01,0.00055068,120]
[320764627,1711548675610,-500.0,0.00055068,120]
[320764628,1711548675620,-1000.0,0.00055068,14]
[320764629,1711548675630,-2637.66,0.00055068,120]
[320764630,1711548675640,-2666.56,0.00055068,120]
[320764631,1711548675650,-1806.4,0.00055068,120]
[320764632,1711548675667,-730.58,0.00055068,120]
[320764633,1711548675677,-1206.49,0.00055068,120]
[320764634,1711548675687,-3750.59,0.00055068,120]
[320764635,1711548675697,-593.73,0.00055068,120]
[320764636,1711548675706,-500.0,0.00055068,120]
[320764637,1711548675716,-500.0,0.00055068,120]
[320764638,1711548675726,-500.0,0.00055068,120]
[320764639,1711548675736,-1771.81,0.00055068,120]
[320764640,1711548675747,-1056.42,0.00055068,120]
[320764641,1711548675757,-5068.43,0.00055068,120]
[320764642,1711548675767,-1610.16,0.00055068,120]
[320764643,1711548675777,-3225.32,0.00055068,120]
[320764644,1711548675786,-606.83,0.00055068,120]
[320764645,1711548675796,-3992.02,0.00055068,120]
[320764646,1711548675806,-2194.68,0.00055068,120]
[320764647,1711548675816,-500.0,0.00055068,120]
[320764648,1711548675825,-504.08,0.00055068,120]
[320764649,1711548675835,-151.0,0.00055068,30]
[320764650,1711548675845,-2162.11,0.00055068,120]
[320764651,1711548675855,-1425.36,0.00055068,120]
[320764652,1711548675865,-500.0,0.00055068,120]
[320764653,1711548675875,-1537.95,0.00055068,120]
[320764654,1711548675886,-2085.45,0.00055068,120]
[320764655,1711548675895,-3285.27,0.00055068,120]
[320764656,1711548675906,-500.0,0.00055068,120]
[320764657,1711548675924,-1437.83,0.00055068,120]
[320764658,1711548675935,-500.0,0.00055068,120]
[320764659,1711548675945,-10448.83,0.00055068,120]
[320764660,1711548675955,-500.0,0.00055068,120]
[320764661,1711548675966,-13709.87,0.00055068,120]
[320764662,1711548675978,-500.0,0.00055068,60]
[320764663,1711548675990,-3954.78,0.00055068,120]
[320764664,1711548676001,-501.34,0.00055068,120]
[320764665,1711548676014,-500.0,0.00055068,60]
[320764666,1711548676025,-2200.99,0.00055068,120]
[320764667,1711548676036,-500.0,0.00055068,120]
[320764668,1711548676048,-5983.20141298,0.00055068,120]
[320764669,1711548676317,-2571.14858702,0.00055068,120]
[320764670,1711548676328,-500.0,0.00055068,7]
[320764671,1711548676340,-1792.88,0.00055068,120]
[320764672,1711548676351,-500.0,0.00055068,120]
[320764673,1711548676362,-1706.58,0.00055068,120]
[320764674,1711548676372,-685.528576,0.00055068,120]
[320764675,1711548676382,-2897.81,0.00055068,120]
[320764676,1711548676393,-151.0,0.00055068,120]
[320764677,1711548676403,-830.82,0.00055068,120]
[320764678,1711548676424,-5115.71,0.00055068,120]
[320764679,1711548676438,-685.528576,0.00055068,120]
[320764680,1711548676451,-3261.78,0.00055068,120]
[320764681,1711548676463,-2227.37,0.00055068,120]
[320764682,1711548676473,-2478.2,0.00055068,120]
[320764683,1711548676483,-2756.18,0.00055068,120]
[320764684,1711548676493,-5578.99,0.00055068,120]
[320764685,1711548676503,-273.201252,0.00055068,120]
[320764686,1711548676514,-500.0,0.00055068,120]
[320764687,1711548676525,-4240.97,0.00055068,120]
[320764688,1711548676536,-722.67,0.00055068,120]
[320764689,1711548676548,-1765.85,0.00055068,120]
[320764690,1711548676558,-500.0,0.00055068,120]
[320764691,1711548676568,-11605.54,0.00055068,120]
[320764692,1711548676578,-525.0,0.00055068,120]
[320764693,1711548676588,-4070.26,0.00055068,120]
[320764694,1711548676598,-607.83,0.00055068,120]
[320764695,1711548676607,-2969.84,0.00055068,120]
[320764696,1711548676617,-628.05,0.00055068,120]
[320764697,1711548676626,-532.16,0.00055068,120]
[320764698,1711548676636,-4109.25,0.00055068,120]
[320764699,1711548676645,-752.43,0.00055068,120]
[320764700,1711548676654,-2201.6,0.00055068,120]
[320764701,1711548676670,-680.74,0.00055068,120]
[320764702,1711548676679,-3648.92,0.00055068,120]
[320764703,1711548676689,-9841.03,0.00055068,120]
[320764704,1711548676699,-599.5,0.00055068,120]
[320764705,1711548676709,-1817.15,0.00055068,120]
[320764706,1711548676718,-1150.23,0.00055068,120]
[320764707,1711548676727,-500.0,0.00055068,120]
[320764708,1711548676739,-519.05,0.00055068,120]
[320764709,1711548676749,-991.16,0.00055068,120]
[320764710,1711548676759,-5027.34,0.00055068,120]
[320764711,1711548676769,-1819.42,0.00055068,120]
[320764712,1711548676780,-1422.74,0.00055068,120]
[320764713,1711548676789,-14198.45,0.00055068,120]
[320764714,1711548676799,-500.0,0.00055068,120]
[320764715,1711548676810,-151.0,0.00055068,120]
[320764716,1711548676819,-500.0,0.00055068,120]
[320764717,1711548676963,-578.09,0.00055068,120]
[320764718,1711548677006,-1921.89,0.00055068,120]
[320764719,1711548677016,-764.46,0.00055068,120]
[320764720,1711548677025,-674.22,0.00055068,120]
[320764721,1711548677035,-565.22,0.00055068,120]
[320764722,1711548677049,-151.0,0.00055068,14]
[320764723,1711548677059,-500.0,0.00055068,120]
[320764724,1711548677069,-163.255056,0.00055068,120]
[320764725,1711548677079,-4364.34,0.00055068,120]
[320764726,1711548677091,-14028.59008725,0.00055068,120]
[320764727,1711548677105,-9978.36726585,0.00055068,120]
[320764728,1711548677119,-7637.76810783,0.00055068,120]
[320764729,1711548677134,-289.65029393,0.00055068,120]
[320764730,1711548677167,-151.56,0.00052,120]
[320764731,1711548677178,-895.04067562,0.00052899,90]
[320764732,1711548677190,-197.55454421,0.00052899,90]
[320764733,1711548677200,-1249.14629354,0.00055068,120]
[320764734,1711548677214,-3441.92554197,0.00055068,120]
[320764735,1711548677226,-515.18193075,0.00055068,120]
[320764736,1711548677990,205.88614142,0.00014,2]
[320764737,1711548678476,2534.18519538,0.00012,2]
[320764738,1711548679729,1135.5135334,0.00013368,2]
[320764739,1711548679791,155.40458974,0.00013368,2]
[320764740,1711548680914,155.31120762,0.00013367,2]
[320764741,1711548680953,541.82645333,0.00013367,2]
[320764742,1711548681390,1606.52316648,0.00013369,2]
[320764743,1711548681624,155.0,0.00013367,2]
[320764744,1711548682679,150.0,0.00012565,2]
[320764745,1711548682699,150.0,0.00012565,2]
[320764746,1711548682720,150.0,0.00012565,2]
[320764747,1711548682740,0.21582317,0.00012565,2]
[320764748,1711548683754,150.0,0.00013367,2]
[320764749,1711548683777,150.0,0.00013367,2]
[320764750,1711548683797,150.0,0.00013367,2]
[320764751,1711548683821,150.0,0.00013367,2]
[320764752,1711548683843,150.0,0.00013367,2]
[320764753,1711548683864,150.0,0.00013367,2]
[320764754,1711548683885,150.0,0.00013367,2]
[320764755,1711548683907,150.0,0.00013367,2]
[320764756,1711548683932,150.0,0.00013367,2]
[320764757,1711548683953,150.0,0.00013367,2]
[320764758,1711548683974,150.0,0.00013367,2]
[320764759,1711548683995,150.0,0.00013367,2]
[320764760,1711548684015,150.0,0.00013367,2]
[320764761,1711548684036,150.0,0.00013367,2]
[320764762,1711548684069,150.0,0.00013367,2]
[320764763,1711548684091,150.0,0.00013367,2]
[320764764,1711548684117,150.0,0.00013367,2]
[320764765,1711548684140,150.0,0.00013367,2]
[320764766,1711548684162,150.0,0.00013367,2]
[320764767,1711548684187,150.0,0.00013367,2]
[320764768,1711548684210,149.78417683,0.00013367,2]
[320764769,1711548684230,150.0,0.00013367,2]
[320764770,1711548684252,150.0,0.00013367,2]
[320764771,1711548684273,150.0,0.00013367,2]
[320764772,1711548684295,150.0,0.00013367,2]
[320764773,1711548684316,150.0,0.00013367,2]
[320764774,1711548684338,150.0,0.00013367,2]
[320764775,1711548684359,128.66422856,0.00013367,2]
[320764776,1711548685088,150.0,0.00015,2]
[320764777,1711548685111,150.0,0.00015,2]
[320764778,1711548685134,150.0,0.00015,2]
[320764779,1711548685156,150.0,0.00015,2]
[320764780,1711548685184,150.0,0.00015,2]
[320764781,1711548685207,150.0,0.00015,2]
[320764782,1711548685228,150.0,0.00015,2]
[320764783,1711548685250,150.0,0.00015,2]
[320764784,1711548685273,150.0,0.00015,2]
[320764785,1711548685296,150.0,0.00015,2]
[320764786,1711548685319,204.23538039,0.00015,2]
[320764787,1711548685585,150.0,0.00015,2]
[320764788,1711548685621,150.0,0.00015,2]
[320764789,1711548685643,21.33577144,0.00015,2]
[320764790,1711548685670,17765.14669857,0.00015,2]
[320764791,1711548685944,150.0,0.00013369,2]
[320764792,1711548685966,151.63627862,0.00013369,2]
[320764793,1711548685999,317.77309168,0.00013369,2]
[320764794,1711548686155,3148.33989645,0.00012699,2]
[320764795,1711548686579,1071.88124437,0.00013369,2]
[320764796,1711548686682,920147.36001513,0.00013369,2]
[320764797,1711548686930,295.41221015,0.00013369,2]
[320764798,1711548701116,150.0,0.00015,2]
[320764799,1711548701142,19605.4352035,0.00015,2]
[320764800,1711548703601,1464.4092569,0.00013368,2]
[320764801,1711548704930,295.41221015,0.00013368,2]
[320764802,1711548705139,1903.83659298,0.00013368,2]
[320764803,1711548705479,861.52776045,0.00013368,2]
[320764804,1711548713647,600.0,0.00013368,2]
[320764807,1711548725482,265.41619345,0.00013368,2]
[320764808,1711548828602,152.27031709,0.00039832,32]
[320764810,1711549081336,5458.4876022,0.00015976,2]
[320764811,1711549105412,500.0,0.00015541,2]
[320764813,1711549168079,174.69,0.00014257,2]
[320764814,1711549216183,-155.0,0.00016064,2]
[320764815,1711549216210,-155.0,0.00016064,2]
[320764816,1711549216233,-2138.31720221,0.00016065,2]
[320764817,1711549216258,-441.45269536,0.00016066,2]
[320764818,1711549216281,-534.84684711,0.00016066,2]
[320764819,1711549216326,-680.30955827,0.00016067,2]
[320764820,1711549216351,-155.0,0.00016067,2]
[320764821,1711549216376,-10557.61748168,0.00016067,2]
[320764822,1711549216402,-1000.0,0.00016068,2]
[320764823,1711549216426,-150.0,0.00016075,2]
[320764824,1711549216451,-196.03753691,0.00016198,2]
[320764825,1711549216475,-2918.87337012,0.00016602,2]
[320764826,1711549216500,-1310.77120771,0.0001661,2]
[320764827,1711549216523,-349.67104766,0.0001661,2]
[320764828,1711549216551,-406.08005128,0.0001661,2]
[320764829,1711549216580,-262.16349394,0.0001661,2]
[320764830,1711549216602,-202.96318192,0.0001661,2]
[320764831,1711549216624,-591.35788153,0.00016611,2]
[320764832,1711549216646,-150.99,0.00016611,2]
[320764833,1711549216668,-547.76,0.00016611,2]
[320764834,1711549216689,-2342.52,0.00016612,2]
[320764835,1711549216712,-16143.5,0.00016612,2]
[320764836,1711549216733,-311.0465,0.00016612,2]
[320764837,1711549216755,-1000.0,0.00016612,2]
[320764838,1711549216790,-234060.10760834,0.00016612,2]
[320764839,1711549232857,154.6516659,0.00015966,2]
[320764840,1711549488542,13342.1707319,0.00015966,2]
[320764841,1711549488570,394155.26472977,0.00015966,2]
[320764842,1711549588643,-1235.44561692,0.0001641,2]
[320764843,1711549588669,-272.6939704,0.00016411,2]
[320764844,1711549588693,-272.6939704,0.00016412,2]
[320764845,1711549588715,-272.6939704,0.00016412,2]
[320764846,1711549588738,-150.0,0.00016511,2]
[320764847,1711549588762,-1000.0,0.00016512,2]
[320764848,1711549588786,-3005.669,0.00016512,2]
[320764849,1711549588812,-10939.89239166,0.00016612,2]
[320764850,1711549588840,-8142.5623,0.00016612,2]
[320764851,1711549588867,-11233.83,0.00017886,2]
[320764852,1711549588891,-23740.7323,0.000179,2]
[320764853,1711549588915,-1000.0,0.00018016,2]
[320764854,1711549588939,-1004.42,0.00018017,2]
[320764855,1711549588963,-210.0,0.00018162,2]
[320764856,1711549588986,-330.94,0.00018173,2]
[320764857,1711549589009,-150.99,0.00018173,2]
[320764858,1711549589033,-499.99,0.00018272,2]
[320764859,1711549589056,-154.65166585,0.00018289,2]
[320764860,1711549589079,-250.0,0.00018597,2]
[320764861,1711549589108,-368.06985763,0.00019178,2]
[320764862,1711549589132,-500.0,0.00019178,2]
[320764863,1711549589160,-3846.71319902,0.000192,2]
[320764864,1711549595398,500.0,0.00019178,2]
[320764865,1711549595454,500.0,0.00019178,2]
[320764866,1711549641200,-180.0,0.00019288,2]
[320764867,1711549641222,-308.72499746,0.000195,2]
[320764868,1711549641243,-873.11,0.00019759,2]
[320764869,1711549641264,-816.65475864,0.0002,2]
[320764870,1711549641284,-216.11713265,0.0002,2]
[320764871,1711549641305,-591.0994759,0.0002,2]
[320764872,1711549641326,-2342.08393912,0.00020167,2]
[320764873,1711549641349,-712.87217546,0.00021,2]
[320764874,1711549641370,-780.88336166,0.00022518,2]
[320764875,1711549641396,-644.17906747,0.00022518,2]
[320764876,1711549641417,-291.06,0.00022661,2]
[320764877,1711549641437,-1650.8,0.00022661,2]
[320764878,1711549641459,-155.95,0.00023164,2]
[320764879,1711549641479,-155.95,0.00023279,2]
[320764880,1711549641500,-2469.4913,0.0002344,2]
[320764881,1711549641520,-1921.96437535,0.00023768,2]
[320764882,1711549641541,-3016.43,0.00023769,2]
[320764883,1711549641561,-271.64,0.00023807,2]
[320764884,1711549641581,-250.0,0.00023807,2]
[320764885,1711549641604,-2622.62,0.00023893,2]
[320764886,1711549641625,-901.63,0.0002391,2]
[320764887,1711549641656,-224.01259758,0.00024,2]
[320764888,1711549641677,-285.8796021,0.00024285,2]
[320764889,1711549641700,-285.8796021,0.00024285,2]
[320764890,1711549641725,-285.8796021,0.00024285,2]
[320764891,1711549641748,-285.8796021,0.00024285,2]
[320764892,1711549641769,-285.8796021,0.00024285,2]
[320764893,1711549641792,-285.8796021,0.00024285,2]
[320764894,1711549641813,-285.8796021,0.00024285,2]
[320764895,1711549641835,-285.8796021,0.00024285,2]
[320764896,1711549641858,-285.8796021,0.00024285,2]
[320764897,1711549641884,-285.8796021,0.00024285,2]
[320764898,1711549641908,-285.8796021,0.00024285,2]
[320764899,1711549641927,-776.18064041,0.00024294,2]
[320764900,1711549641946,-600.36602728,0.00024294,2]
[320764901,1711549641966,-23900.0,0.00024295,2]
[320764902,1711549641985,-500.0,0.00024394,2]
[320764903,1711549642010,-285.8796021,0.00024519,2]
[320764904,1711549642035,-1165.04,0.00024529,2]
[320764905,1711549642056,-285.8796021,0.00024555,2]
[320764906,1711549642079,-285.8796021,0.00024555,2]
[320764907,1711549642101,-285.8796021,0.00024555,2]
[320764908,1711549642123,-285.8796021,0.00024555,2]
[320764909,1711549642151,-6882.74,0.00024565,2]
[320764910,1711549642172,-285.8796021,0.00024621,2]
[320764911,1711549642193,-150.0,0.00024631,2]
[320764912,1711549642213,-170.32,0.00024796,2]
[320764913,1711549642235,-2594.6177927,0.00025,2]
[320764914,1711549642259,-285.8796021,0.00025025,2]
[320764915,1711549642286,-285.8796021,0.00025025,2]
[320764916,1711549642316,-1000.0,0.00025036,2]
[320764917,1711549642340,-285.8796021,0.00025037,2]
[320764918,1711549642366,-200.0,0.00025047,2]
[320764919,1711549642395,-342.18,0.00025088,2]
[320764920,1711549642416,-250.0,0.00025139,2]
[320764921,1711549642441,-285.8796021,0.00025214,2]
[320764922,1711549642462,-1004.42,0.00025224,2]
[320764923,1711549642483,-628.33,0.0002562,2]
[320764924,1711549642505,-938.15,0.0002568,2]
[320764925,1711549642526,-198.4,0.00025734,2]